[Event "11th Tamil Nadu Circuit-IM 2024"]
[Site "Chennai"]
[Date "2024.01.09"]
[Round "2.3"]
[White "Khusenkhojaev, Muhammad"]
[Black "Daakshin Arun"]
[Result "1-0"]
[ECO "E06"]
[WhiteElo "2379"]
[BlackElo "2309"]
[Annotator "RC"]
[PlyCount "81"]
[EventDate "2024.01.09"]
[EventType "tourn"]
[EventCountry "IND"]
[SourceTitle "playchess.com"]
[Source "ChessBase"]
[SourceQuality "1"]
[TimeControl "5400+30"]

1. Nf3 {[%emt 0:00:08]} Nf6 {[%emt 0:00:10]} 2. c4 {[%emt 0:00:03]} e6 {[%emt 0:00:07]} 3. g3 {[%emt 0:00:07]} d5 {[%emt 0:00:08]} 4. d4 {[%emt 0:00:04]} Be7 {[%emt 0:00:06]} 5. Bg2 {[%emt 0:00:08]} O-O {[%emt 0:00:06]} 6. Qc2 {[%emt 0:00:35]} c5 {[%emt 0:02:08]} 7. dxc5 {[%emt 0:01:26]} d4 {[%emt 0:02:42]} 8. b4 {[%emt 0:02:26]} a5 {[%emt 0:02:38]} 9. Bb2 {[%emt 0:00:08]} Nc6 {[%emt 0:05:56]} 10. b5 {[%emt 0:07:29]} Nb4 {[%emt 0:00:21]} 11. Qd2 {[%emt 0:00:26]} Ne4 {[%emt 0:04:27]} 12. Qd1 {[%emt 0:01:58]} d3 {[%emt 0:02:16]} 13. O-O {[%emt 0:02:49]} Bxc5 {[%emt 0:13:21]} 14. Nc3 {[%emt 0:07:57]} f5 {[%emt 0:09:50]} 15. a3 {[%emt 0:03:57]} Nxf2 {[%emt 0:09:23]} 16. Rxf2 {[%emt 0:00:06]} Nc2 {[%emt 0:08:28]} 17. exd3 {[%emt 0:01:06]} Bxf2+ {[%emt 0:01:16]} 18. Kxf2 {[%emt 0:00:05]} Nxa1 {[%emt 0:01:02]} 19. Bxa1 {[%emt 0:00:12]} Qd6 {[%emt 0:06:08]} 20. Bb2 {[%emt 0:03:52]} b6 {[%emt 0:01:53]} 21. Na4 {[%emt 0:03:06]} Bb7 {[%emt 0:01:09]} 22. Qe2 {[%emt 0:00:05]} Bxf3 {[%emt 0:04:45]} 23. Bxf3 {[%emt 0:00:34]} Rad8 {[%emt 0:01:28]} 24. d4 {[%emt 0:02:14]} f4 {[%emt 0:04:10]} 25. g4 {[%emt 0:00:09]} h5 {[%emt 0:01:36]} 26. g5 {[%emt 0:01:36]} Rf5 {[%emt 0:05:18]} 27. h4 {[%emt 0:01:20]} Rc8 {[%emt 0:01:24]} 28. Kg2 {[%emt 0:01:00]} g6 {[%emt 0:02:15]} 29. c5 {[%emt 0:03:32]} bxc5 {[%emt 0:00:15]} 30. dxc5 {[%emt 0:00:04]} Rcxc5 {[%emt 0:01:15]} 31. Nxc5 {[%emt 0:00:07]} Rxc5 {[%emt 0:00:04]} 32. b6 {[%emt 0:00:14]} e5 {[%emt 0:01:10]} 33. b7 {[%emt 0:01:05]} a4 {[%emt 0:01:00]} 34. Be4 {[%emt 0:02:28]} Qb6 {[%emt 0:03:07]} 35. Qf2 {[%emt 0:08:03]} f3+ {[%emt 0:03:59]} 36. Kg3 {[%emt 0:00:32]} Kh7 {[%emt 0:01:24]} 37. b8=Q {[%emt 0:01:02]} Qxb8 {[%emt 0:00:34]} 38. Qxc5 {[%emt 0:00:07]} f2 {[%emt 0:00:21]} 39. Qxf2 {[%emt 0:00:13]} Qf8 {[%emt 0:00:15]} 40. Bxg6+ {[%emt 0:00:20]} Kxg6 {[%emt 0:00:05]} 41. Qxf8 {[%emt 0:00:06]} 1-0

[Event "11th Tamil Nadu Circuit-IM 2024"]
[Site "Chennai"]
[Date "2024.01.09"]
[Round "2.4"]
[White "Priyanka, K."]
[Black "Hemanth Raam"]
[Result "0-1"]
[ECO "C77"]
[WhiteElo "2068"]
[BlackElo "2161"]
[Annotator "TA"]
[PlyCount "96"]
[EventDate "2024.01.09"]
[EventType "tourn"]
[EventCountry "IND"]
[SourceTitle "playchess.com"]
[Source "ChessBase"]
[SourceQuality "1"]
[TimeControl "5400+30"]

{[%evp 16,96,28,23,29,20,29,22,49,10,39,45,36,3,15,16,14,0,0,-81,0,-3,63,50,59,29,41,8,13,20,53,15,50,-74,-66,-84,-68,-132,-148,-126,-111,-139,-84,-106,-99,-101,-72,-70,-72,-130,-114,-122,-119,-196,-156,-406,-315,-400,-445,-1200,-1133,-1977,-1893,-1760,-1238,-1122,-790,-5531,-5531,-1456,-1441,-29964,-29965,-29959,-29964,-29967,-29968,-29964,-5522,-29977,-29978,-29977,-29979]} 1. e4 {[%emt 0:00:19]} e5 {[%emt 0:00:16]} 2. Nf3 {[%emt 0:00:16]} Nc6 {[%emt 0:00:05]} 3. Bb5 {[%emt 0:00:19]} a6 {[%emt 0:00:08]} 4. Ba4 {[%emt 0:00:22]} Nf6 {[%emt 0:00:25]} 5. d3 {[%emt 0:00:18]} d6 {[%emt 0:00:59]} 6. c3 {[%emt 0:04:54]} g6 {[%emt 0:00:41]} 7. O-O {[%emt 0:02:07]} Bg7 {[%emt 0:00:18]} 8. Re1 {[%emt 0:01:49]} O-O {[%emt 0:00:39]} 9. h3 {[%emt 0:00:53]} Bd7 {[%emt 0:06:13] C77: Ruy Lopez: 3...a6 4 Ba4 Nf6, unusual lines.} 10. Nbd2 {[%emt 0:03:24]} Nh5 {[%emt 0:00:59]} 11. Nf1 {[%emt 0:02:30]} h6 {[%emt 0:00:52] The position is equal.} 12. d4 {[%emt 0:04:32]} exd4 {[%emt 0:17:58]} 13. cxd4 {[%emt 0:02:33]} Re8 {[%emt 0:00:09]} 14. Bc2 {[%emt 0:16:15] [#]} Nb4 $146 {[%emt 0:11:47]} ({Predecessor:} 14... Qf6 15. Be3 Nb4 16. Bb1 c5 17. e5 dxe5 18. dxe5 Qc6 19. Qc1 Bxe5 20. Nxe5 Rxe5 21. Bxh6 Rxe1 22. Qxe1 {½-½ Grinberg,E (2431)-Boruchovsky,A (2531) Pardubice Czech op-A 27th 2016 (3)}) 15. Bb1 {[%emt 0:01:29]} (15. Bb3 {keeps more tension.} c5 16. Bd2 Bb5 17. g4) 15... c5 $1 {[%emt 0:00:16]} 16. Bd2 {[%emt 0:22:50]} Nc6 {[%emt 0:06:28]} 17. Bc3 {[%emt 0:01:00]} (17. g4 $11) 17... b5 {[%emt 0:00:28]} ({Black should play} 17... cxd4 $17 18. Nxd4 Nxd4 19. Bxd4 Bxd4 20. Qxd4 Nf4) 18. dxc5 $1 $11 {[%emt 0:03:02]} Bxc3 {[%emt 0:00:28]} (18... dxc5 $11 19. Bxg7 Kxg7) 19. bxc3 $14 {[%emt 0:00:06]} dxc5 {[%emt 0:00:04]} 20. Qd2 {[%emt 0:01:48]} (20. e5 $5 {[%cal Rd1d2]}) 20... Kg7 {[%emt 0:00:57]} 21. Bc2 {[%emt 0:08:46]} (21. e5 {feels hotter.} Na5 22. Qc1 Bc6 23. N1h2) 21... Be6 {[%emt 0:01:01]} 22. Qe3 $1 {[%emt 0:01:24]} Qe7 {[%emt 0:01:04]} 23. a4 {[%emt 0:00:40] Threatening e5.} Na5 {[%emt 0:06:30]} 24. Reb1 {[%emt 0:01:23]} (24. e5 $14 {keeps the upper hand.}) 24... Nc4 $17 {[%emt 0:01:19]} 25. Qe1 {[%emt 0:04:06]} Nf4 {[%emt 0:03:11]} 26. N1d2 {[%emt 0:07:39]} (26. Ng3 $15) 26... Rad8 {[%emt 0:08:38] Black is much more active.} 27. Nxc4 {[%emt 0:03:16]} (27. axb5 $2 Nxd2 28. Qe3 Nxf3+ 29. Qxf3 Qg5 $19) 27... Bxc4 {[%emt 0:00:41]} ({Much worse is} 27... bxc4 $6 28. Qe3 Nd3 29. Rd1 $11) 28. Qe3 {[%emt 0:01:06] Against Bd3} g5 {[%emt 0:02:59]} ({Black should try} 28... Ne2+ 29. Kh1 b4 30. cxb4 cxb4) 29. Rd1 {[%emt 0:03:31] [#]} Be2 $1 $36 {[%emt 0:08:07][%mdl 2048] Black has strong initiative.} 30. Rxd8 {[%emt 0:00:31]} Rxd8 {[%emt 0:00:02]} 31. axb5 {[%emt 0:01:56]} axb5 {[%emt 0:00:08] ...Bxf3 would be deadly.} 32. Nh4 {[%emt 0:00:46]} gxh4 {[%emt 0:01:30]} 33. Qxf4 {[%emt 0:00:05]} Qg5 {[%emt 0:00:04]} 34. Qxg5+ {[%emt 0:00:59]} (34. Qf5 $17 {is a better defense.}) 34... hxg5 {[%emt 0:00:02][%mdl 4096] Endgame KRB-KRB} 35. Rc1 $2 {[%emt 0:00:30] Now White is beyond hope.} (35. e5 $17) 35... Kf6 $19 {[%emt 0:01:46]} 36. Kh2 {[%emt 0:00:25]} Ke5 {[%emt 0:00:23]} 37. Bb1 {[%emt 0:00:34]} (37. g3 $142 Rd2 38. gxh4 gxh4 39. Kg1) 37... Rd1 {[%emt 0:04:52]} 38. Rxd1 {[%emt 0:00:17]} Bxd1 {[%emt 0:00:03] KB-KB} 39. Kg1 {[%emt 0:00:45]} b4 {[%emt 0:00:06]} 40. cxb4 {[%emt 0:00:09]} c4 {[%emt 0:01:35][%cal Bc5c4,Bc4c3][%mdl 32] [#] And now ...c3 would win.} 41. b5 {[%emt 0:00:38]} c3 {[%emt 0:00:11] aiming for ...c2.} 42. b6 {[%emt 0:00:38]} Kd6 {[%emt 0:00:03]} ({Not} 42... c2 43. Bxc2 Bxc2 44. b7 Kxe4 45. b8=Q $18 (45. b8=B f6 $11)) 43. Kf1 {[%emt 0:00:34]} c2 {[%emt 0:00:08]} 44. Bxc2 {[%emt 0:00:06]} Bxc2 {[%emt 0:00:03]} 45. e5+ {[%emt 0:00:49]} Kc6 {[%emt 0:00:02]} (45... Kxe5 $2 46. b7 Bd3+ 47. Kg1 $18) 46. Ke2 {[%emt 0:00:12]} Kxb6 {[%emt 0:01:55] ( -> ...Kc5)} 47. f4 {[%emt 0:00:48]} Be4 {[%emt 0:01:17]} 48. fxg5 {[%emt 0:00:18]} Bxg2 {[%emt 0:00:10] Weighted Error Value: White=0.83/Black=0.23 (precise)} 0-1

[Event "11th Tamil Nadu Circuit-IM 2024"]
[Site "Chennai"]
[Date "2024.01.09"]
[Round "2.5"]
[White "Harsh Suresh"]
[Black "Manik, Mikulas"]
[Result "1-0"]
[ECO "E62"]
[WhiteElo "2361"]
[BlackElo "2342"]
[Annotator "ChessBase"]
[PlyCount "81"]
[EventDate "2024.01.09"]
[EventType "tourn"]
[EventCountry "IND"]
[SourceTitle "playchess.com"]
[Source "ChessBase"]
[SourceQuality "1"]
[TimeControl "5400+30"]

1. d4 {[%emt 0:02:20]} Nf6 {[%emt 0:00:03]} 2. c4 {[%emt 0:00:30]} g6 {[%emt 0:00:30]} 3. g3 {[%emt 0:00:30]} Bg7 {[%emt 0:00:30]} 4. Bg2 {[%emt 0:00:30]} O-O {[%emt 0:00:30]} 5. Nc3 {[%emt 0:00:30]} d6 {[%emt 0:00:30]} 6. Nf3 {[%emt 0:00:30]} Nc6 {[%emt 0:00:30]} 7. O-O {[%emt 0:00:30]} e5 {[%emt 0:01:48]} 8. dxe5 {[%emt 0:00:00]} Nxe5 {[%emt 0:00:00]} 9. Nxe5 {[%emt 0:00:00]} dxe5 {[%emt 0:00:00]} 10. Qxd8 {[%emt 0:00:00]} Rxd8 {[%emt 0:00:00]} 11. Bg5 {[%emt 0:00:00]} Rd4 {[%emt 0:00:00]} 12. Be3 {[%emt 0:00:00]} Rd7 {[%emt 0:10:48]} 13. Nb5 {[%emt 0:00:00]} Ng4 {[%emt 0:01:54]} 14. Bc5 {[%emt 0:00:00]} Bf8 {[%emt 0:07:55]} 15. Bxf8 {[%emt 0:00:00]} Kxf8 {[%emt 0:00:05]} 16. c5 {[%emt 0:00:00]} c6 {[%emt 0:02:26]} 17. Nd6 {[%emt 0:00:00]} Re7 {[%emt 0:00:19]} 18. b4 {[%emt 0:17:08]} f5 {[%emt 0:00:16]} 19. e4 {[%emt 0:02:22]} Nf6 {[%emt 0:13:48]} 20. f4 {[%emt 0:06:55]} Nxe4 {[%emt 0:01:48]} 21. Bxe4 {[%emt 0:00:58]} fxe4 {[%emt 0:00:02]} 22. fxe5+ {[%emt 0:00:14]} Kg7 {[%emt 0:02:51]} 23. Nxe4 {[%emt 0:09:10]} Rxe5 {[%emt 0:08:49]} 24. Nd6 {[%emt 0:01:17]} a5 {[%emt 0:00:20]} 25. Nc4 {[%emt 0:07:31]} Re4 {[%emt 0:04:54]} 26. Nb6 {[%emt 0:00:16]} Rb8 {[%emt 0:00:14]} 27. Rae1 {[%emt 0:03:29]} Rxe1 {[%emt 0:00:27]} 28. Rxe1 {[%emt 0:00:02]} Bg4 {[%emt 0:00:09]} 29. bxa5 {[%emt 0:00:56]} Rd8 {[%emt 0:00:14]} 30. h3 {[%emt 0:07:24]} Bxh3 {[%emt 0:01:15]} 31. Re7+ {[%emt 0:00:09]} Kh6 {[%emt 0:02:15]} 32. Rxb7 {[%emt 0:00:22]} Rd1+ {[%emt 0:00:40]} 33. Kh2 {[%emt 0:00:25]} Bf5 {[%emt 0:06:03]} 34. a6 {[%emt 0:01:27]} Kg5 {[%emt 0:00:19]} 35. Kg2 {[%emt 0:07:02]} Kg4 {[%emt 0:02:55]} 36. a7 {[%emt 0:06:33]} Rd2+ {[%emt 0:00:31]} 37. Kf1 {[%emt 0:00:05]} Kf3 {[%emt 0:02:11]} 38. Ke1 {[%emt 0:00:12]} Re2+ {[%emt 0:00:22]} 39. Kd1 {[%emt 0:00:13]} Rxa2 {[%emt 0:00:06]} 40. Rxh7 {[%emt 0:03:07]} g5 {[%emt 0:02:29]} 41. Rf7 {[%emt 0:01:03]} 1-0

[Event "11th Tamil Nadu Circuit-IM 2024"]
[Site "Chennai"]
[Date "2024.01.10"]
[Round "3.1"]
[White "Manik, Mikulas"]
[Black "Wagh Suyog"]
[Result "1/2-1/2"]
[ECO "C77"]
[WhiteElo "2342"]
[BlackElo "2266"]
[Annotator "RC"]
[PlyCount "72"]
[EventDate "2024.01.09"]
[EventType "tourn"]
[EventCountry "IND"]
[SourceTitle "playchess.com"]
[Source "ChessBase"]
[SourceQuality "1"]
[TimeControl "5400+30"]

1. e4 {[%emt 0:00:03]} e5 {[%emt 0:11:28]} 2. Nf3 {[%emt 0:00:04]} Nc6 {[%emt 0:00:11]} 3. Bb5 {[%emt 0:00:07]} a6 {[%emt 0:03:10]} 4. Ba4 {[%emt 0:00:03]} Nf6 {[%emt 0:00:05]} 5. d3 {[%emt 0:00:10]} b5 {[%emt 0:03:15]} 6. Bb3 {[%emt 0:00:07]} Bc5 {[%emt 0:00:14]} 7. Nc3 {[%emt 0:00:16]} Rb8 {[%emt 0:04:24]} 8. Nd5 {[%emt 0:02:45]} h6 {[%emt 0:04:03]} 9. c3 {[%emt 0:00:37]} d6 {[%emt 0:03:30]} 10. O-O {[%emt 0:00:52]} O-O {[%emt 0:03:57]} 11. a4 {[%emt 0:05:07]} Nxd5 {[%emt 0:15:45]} 12. Bxd5 {[%emt 0:03:55]} Ne7 {[%emt 0:01:35]} 13. Ba2 {[%emt 0:00:17]} Ng6 {[%emt 0:01:59]} 14. axb5 {[%emt 0:00:44]} axb5 {[%emt 0:00:35]} 15. d4 {[%emt 0:09:51]} Bb6 {[%emt 0:00:15]} 16. dxe5 {[%emt 0:04:38]} dxe5 {[%emt 0:10:54]} 17. Qxd8 {[%emt 0:01:32]} Rxd8 {[%emt 0:00:01]} 18. Bd5 {[%emt 0:00:39]} Bb7 {[%emt 0:04:09]} 19. Bxb7 {[%emt 0:00:13]} Rxb7 {[%emt 0:00:01]} 20. Be3 {[%emt 0:00:20]} Bxe3 {[%emt 0:01:29]} 21. fxe3 {[%emt 0:00:03]} f6 {[%emt 0:03:09]} 22. Rfd1 {[%emt 0:08:01]} Rxd1+ {[%emt 0:01:58]} 23. Rxd1 {[%emt 0:00:08]} Kf7 {[%emt 0:00:16]} 24. Rd8 {[%emt 0:02:10]} Ra7 {[%emt 0:06:34]} 25. Ne1 {[%emt 0:04:04]} Ne7 {[%emt 0:03:19]} 26. Kf2 {[%emt 0:05:19]} Ra2 {[%emt 0:10:37]} 27. Nd3 {[%emt 0:00:17]} c5 {[%emt 0:00:04]} 28. Nxc5 {[%emt 0:00:26]} Rxb2+ {[%emt 0:00:03]} 29. Kf3 {[%emt 0:00:31]} Rc2 {[%emt 0:00:08]} 30. Nb7 {[%emt 0:00:07]} Rxc3 {[%emt 0:01:45]} 31. Nd6+ {[%emt 0:04:49]} Ke6 {[%emt 0:00:07]} 32. Nxb5 {[%emt 0:00:01]} Rc6 33. h4 {[%emt 0:00:10]} h5 {[%emt 0:00:12]} 34. g3 {[%emt 0:00:02]} g6 35. Kf2 {[%emt 0:00:06]} Rc2+ {[%emt 0:00:04]} 36. Kf3 {[%emt 0:00:02]} Rc6 1/2-1/2

[Event "11th Tamil Nadu Circuit-IM 2024"]
[Site "Chennai"]
[Date "2024.01.10"]
[Round "3.2"]
[White "Hemanth Raam"]
[Black "Harsh Suresh"]
[Result "0-1"]
[ECO "C45"]
[WhiteElo "2161"]
[BlackElo "2361"]
[Annotator "RC"]
[PlyCount "116"]
[EventDate "2024.01.09"]
[EventType "tourn"]
[EventCountry "IND"]
[SourceTitle "playchess.com"]
[Source "ChessBase"]
[SourceQuality "1"]
[TimeControl "5400+30"]

1. e4 {[%emt 0:00:03]} e5 {[%emt 0:00:21]} 2. Nf3 {[%emt 0:00:14]} Nc6 {[%emt 0:00:08]} 3. d4 {[%emt 0:02:19]} exd4 {[%emt 0:00:10]} 4. Nxd4 {[%emt 0:00:18]} Qf6 {[%emt 0:00:15]} 5. Nf3 {[%emt 0:00:42]} Bb4+ {[%emt 0:00:18]} 6. c3 {[%emt 0:00:07]} Bc5 {[%emt 0:00:09]} 7. Be2 {[%emt 0:00:05]} h6 {[%emt 0:00:11]} 8. O-O {[%emt 0:01:10]} Nge7 {[%emt 0:00:29]} 9. Qc2 {[%emt 0:01:50]} d6 {[%emt 0:01:36]} 10. b4 {[%emt 0:00:49]} Bb6 {[%emt 0:00:24]} 11. Bb2 {[%emt 0:00:50]} O-O {[%emt 0:10:43]} 12. Nbd2 {[%emt 0:05:56]} Ng6 {[%emt 0:07:47]} 13. c4 {[%emt 0:04:10]} Bd4 {[%emt 0:05:02]} 14. Nxd4 {[%emt 0:04:26]} Nxd4 {[%emt 0:00:11]} 15. Bxd4 {[%emt 0:00:16]} Qxd4 {[%emt 0:00:03]} 16. Nb3 {[%emt 0:04:33]} Qf6 {[%emt 0:15:17]} 17. Rfe1 {[%emt 0:02:09]} Bd7 {[%emt 0:04:48]} 18. Rad1 {[%emt 0:01:27]} Ba4 {[%emt 0:02:49]} 19. Bf1 {[%emt 0:02:02]} a5 {[%emt 0:04:22]} 20. a3 {[%emt 0:01:34]} Ne5 {[%emt 0:01:53]} 21. Re3 {[%emt 0:11:22]} axb4 {[%emt 0:03:05]} 22. axb4 {[%emt 0:00:31]} Nc6 {[%emt 0:00:53]} 23. Qd2 {[%emt 0:00:35]} Rfe8 {[%emt 0:01:49]} 24. Rde1 {[%emt 0:06:06]} Bxb3 {[%emt 0:03:20]} 25. Rxb3 {[%emt 0:01:08]} Qd4 {[%emt 0:05:08]} 26. Rd3 {[%emt 0:08:43]} Qb6 {[%emt 0:05:16]} 27. Rg3 {[%emt 0:05:21]} Re6 {[%emt 0:01:14]} 28. Qc3 {[%emt 0:07:58]} g6 {[%emt 0:12:24]} 29. Rb1 {[%emt 0:02:28]} Qd4 {[%emt 0:06:44]} 30. b5 {[%emt 0:01:35]} Qxe4 31. Bd3 {[%emt 0:10:27]} Nd4 {[%emt 0:01:05]} 32. Bxe4 {[%emt 0:06:07]} Ne2+ {[%emt 0:00:01]} 33. Kf1 {[%emt 0:00:04]} Nxc3 {[%emt 0:00:06]} 34. Rxc3 {[%emt 0:00:02]} Rxe4 {[%emt 0:00:06]} 35. c5 {[%emt 0:00:23]} dxc5 {[%emt 0:00:36]} 36. Rxc5 {[%emt 0:00:06]} Ra2 {[%emt 0:00:10]} 37. Re1 {[%emt 0:01:55]} Rb4 {[%emt 0:00:07]} 38. Kg1 {[%emt 0:02:10]} Rbb2 {[%emt 0:00:15]} 39. Rf1 {[%emt 0:00:03]} Rc2 {[%emt 0:00:16]} 40. Rxc2 {[%emt 0:00:27]} Rxc2 {[%emt 0:00:02]} 41. Rd1 {[%emt 0:00:09]} Rb2 {[%emt 0:00:14]} 42. Kf1 {[%emt 0:01:25]} Rxb5 {[%emt 0:00:06]} 43. Ke2 {[%emt 0:00:02]} Re5+ {[%emt 0:00:15]} 44. Kf3 {[%emt 0:00:04]} b5 {[%emt 0:00:20]} 45. Kf4 {[%emt 0:00:07]} Re2 {[%emt 0:00:16]} 46. Kf3 {[%emt 0:00:04]} Rc2 {[%emt 0:00:05]} 47. Rd8+ {[%emt 0:00:05]} Kg7 {[%emt 0:00:06]} 48. Rb8 {[%emt 0:00:03]} c6 {[%emt 0:00:07]} 49. Rb6 {[%emt 0:00:03]} Rc4 {[%emt 0:00:44]} 50. Ke3 {[%emt 0:00:14]} b4 {[%emt 0:00:17]} 51. Kd3 {[%emt 0:00:04]} Rc3+ {[%emt 0:00:04]} 52. Kd2 {[%emt 0:00:05]} c5 {[%emt 0:00:03]} 53. Rc6 {[%emt 0:00:41]} h5 {[%emt 0:00:16]} 54. h4 {[%emt 0:00:06]} Rc4 {[%emt 0:00:22]} 55. g3 {[%emt 0:00:05]} b3 {[%emt 0:00:14]} 56. f3 {[%emt 0:00:24]} Rc2+ {[%emt 0:00:35]} 57. Ke3 {[%emt 0:00:10]} b2 {[%emt 0:00:12]} 58. Rb6 {[%emt 0:00:03]} c4 {[%emt 0:00:04]} 0-1

[Event "11th Tamil Nadu Circuit-IM 2024"]
[Site "Chennai"]
[Date "2024.01.10"]
[Round "3.3"]
[White "Daakshin Arun"]
[Black "Priyanka, K."]
[Result "1-0"]
[ECO "A58"]
[WhiteElo "2309"]
[BlackElo "2068"]
[Annotator "RC"]
[PlyCount "85"]
[EventDate "2024.01.09"]
[EventType "tourn"]
[EventCountry "IND"]
[SourceTitle "playchess.com"]
[Source "ChessBase"]
[SourceQuality "1"]
[TimeControl "5400+30"]

1. d4 {[%emt 0:00:03]} Nf6 {[%emt 0:00:20]} 2. c4 {[%emt 0:00:06]} c5 {[%emt 0:00:18]} 3. d5 {[%emt 0:00:06]} b5 {[%emt 0:00:05]} 4. cxb5 {[%emt 0:00:04]} a6 {[%emt 0:00:05]} 5. bxa6 {[%emt 0:00:29]} g6 {[%emt 0:00:10]} 6. Nc3 {[%emt 0:00:09]} Bg7 {[%emt 0:00:06]} 7. e4 {[%emt 0:00:04]} O-O {[%emt 0:00:13]} 8. a7 {[%emt 0:00:24]} Rxa7 {[%emt 0:00:15]} 9. Nf3 {[%emt 0:00:06]} e6 {[%emt 0:00:13]} 10. Be2 {[%emt 0:00:24]} exd5 {[%emt 0:01:12]} 11. exd5 {[%emt 0:00:09]} d6 {[%emt 0:00:11]} 12. O-O {[%emt 0:00:06]} Na6 {[%emt 0:00:14]} 13. Nb5 {[%emt 0:00:04]} Rd7 {[%emt 0:00:11]} 14. Bc4 {[%emt 0:00:05]} Bb7 {[%emt 0:00:27]} 15. Qb3 {[%emt 0:01:17]} Qa8 {[%emt 0:00:48]} 16. Rd1 {[%emt 0:00:58]} Nc7 {[%emt 0:01:25]} 17. Nxc7 {[%emt 0:00:46]} Rxc7 {[%emt 0:00:06]} 18. Bf4 {[%emt 0:00:03]} Rd8 {[%emt 0:00:15]} 19. h3 {[%emt 0:01:34]} Ba6 {[%emt 0:10:37]} 20. Nd2 {[%emt 0:01:37]} Rb7 {[%emt 0:06:30]} 21. Qd3 {[%emt 0:00:52]} Ra7 {[%emt 0:11:58]} 22. Bxa6 {[%emt 0:11:08]} Rxa6 {[%emt 0:00:07]} 23. Nc4 {[%emt 0:03:34]} Rxa2 {[%emt 0:14:44]} 24. Rxa2 {[%emt 0:01:54]} Qxa2 {[%emt 0:00:05]} 25. Nxd6 {[%emt 0:27:39]} Qxb2 {[%emt 0:05:57]} 26. Ne4 {[%emt 0:05:40]} Nxe4 {[%emt 0:19:52]} 27. Qxe4 {[%emt 0:00:14]} Bd4 {[%emt 0:00:27]} 28. Bc7 {[%emt 0:15:31]} Rf8 {[%emt 0:10:29]} 29. d6 Qb5 {[%emt 0:10:38]} 30. Qd5 {[%emt 0:13:07]} Qd7 {[%emt 0:03:15]} 31. Re1 {[%emt 0:01:21]} Bf6 {[%emt 0:01:36]} 32. Qxc5 {[%emt 0:00:58]} Kg7 {[%emt 0:01:56]} 33. g4 {[%emt 0:02:16]} h6 {[%emt 0:00:33]} 34. Kg2 {[%emt 0:01:15]} Ra8 {[%emt 0:00:45]} 35. Re3 {[%emt 0:01:59]} Ra1 {[%emt 0:01:21]} 36. Rf3 {[%emt 0:01:34]} Qe6 {[%emt 0:00:19]} 37. Rxf6 {[%emt 0:03:48]} Qe1 {[%emt 0:00:29]} 38. Kg3 {[%emt 0:04:24]} Qg1+ {[%emt 0:00:26]} 39. Kh4 {[%emt 0:01:15]} Qg2 {[%emt 0:00:47]} 40. Qc3 {[%emt 0:01:41]} Rh1 {[%emt 0:00:30]} 41. Rf3+ {[%emt 0:00:48]} Kg8 {[%emt 0:00:06]} 42. Qe3 {[%emt 0:01:21]} Re1 {[%emt 0:00:56]} 43. d7 {[%emt 0:00:26]} 1-0

[Event "11th Tamil Nadu Circuit-IM 2024"]
[Site "Chennai"]
[Date "2024.01.10"]
[Round "3.4"]
[White "Lokesh, N.."]
[Black "Khusenkhojaev, Muhammad"]
[Result "0-1"]
[ECO "C54"]
[WhiteElo "2140"]
[BlackElo "2379"]
[Annotator "RC"]
[PlyCount "92"]
[EventDate "2024.01.09"]
[EventType "tourn"]
[EventCountry "IND"]
[SourceTitle "playchess.com"]
[Source "ChessBase"]
[SourceQuality "1"]
[TimeControl "5400+30"]

1. e4 {[%emt 0:00:05]} e5 {[%emt 0:00:18]} 2. Nf3 {[%emt 0:00:07]} Nc6 {[%emt 0:00:05]} 3. Bc4 Bc5 {[%emt 0:00:12]} 4. O-O {[%emt 0:00:17]} Nf6 {[%emt 0:00:05]} 5. d3 {[%emt 0:00:05]} O-O {[%emt 0:00:22]} 6. h3 {[%emt 0:00:33]} d6 {[%emt 0:00:20]} 7. c3 {[%emt 0:00:08]} a5 {[%emt 0:00:06]} 8. Re1 {[%emt 0:16:28]} h6 {[%emt 0:01:15]} 9. Bb3 {[%emt 0:09:50]} Re8 {[%emt 0:00:57]} 10. Nbd2 {[%emt 0:00:30]} Be6 {[%emt 0:00:30]} 11. Ba4 {[%emt 0:00:30]} Bd7 {[%emt 0:00:30]} 12. Nf1 {[%emt 0:08:15]} Ba7 13. Ng3 Ne7 {[%emt 0:04:58]} 14. Bxd7 {[%emt 0:04:34]} Nxd7 {[%emt 0:00:06]} 15. Nh4 {[%emt 0:00:39]} d5 {[%emt 0:01:18]} 16. Nh5 {[%emt 0:15:08]} g6 {[%emt 0:13:16]} 17. Bxh6 {[%emt 0:00:30]} gxh5 {[%emt 0:00:30]} 18. Qxh5 {[%emt 0:00:30]} Nf8 {[%emt 0:00:30]} 19. Qxe5 {[%emt 0:00:30]} Nf5 {[%emt 0:00:30]} 20. Qxf5 {[%emt 0:00:30]} Qxh4 {[%emt 0:00:30]} 21. Bg5 Bxf2+ {[%emt 0:01:21]} 22. Kh1 {[%emt 0:25:50]} Qh5 {[%emt 0:01:06]} 23. Rf1 {[%emt 0:00:08]} Bg3 {[%emt 0:00:49]} 24. Qxd5 {[%emt 0:06:41]} c6 {[%emt 0:02:55]} 25. Qb3 {[%emt 0:01:04]} a4 {[%emt 0:05:05]} 26. Qxb7 {[%emt 0:00:28]} Rab8 {[%emt 0:00:25]} 27. Qa7 {[%emt 0:00:33]} Rxb2 {[%emt 0:00:22]} 28. Rf5 {[%emt 0:02:42]} Re5 {[%emt 0:05:26]} 29. Qe3 {[%emt 0:04:09]} Rxf5 {[%emt 0:00:37]} 30. exf5 {[%emt 0:00:01]} Bf2 {[%emt 0:10:02]} 31. Qf4 {[%emt 0:02:16]} Rxa2 {[%emt 0:03:09]} 32. Rb1 {[%emt 0:00:06]} Rb2 {[%emt 0:00:43]} 33. Ra1 {[%emt 0:00:06]} a3 {[%emt 0:00:35]} 34. Be7 {[%emt 0:02:38]} a2 {[%emt 0:02:18]} 35. Kh2 Re2 {[%emt 0:13:54]} 36. Bf6 {[%emt 0:01:52]} Nd7 {[%emt 0:00:51]} 37. Be7 {[%emt 0:00:43]} Rxe7 {[%emt 0:04:33]} 38. Qxf2 {[%emt 0:00:12]} Re2 {[%emt 0:00:09]} 39. Qg3+ {[%emt 0:00:48]} Kh7 {[%emt 0:00:04]} 40. Rf1 {[%emt 0:00:27]} Ne5 {[%emt 0:02:51]} 41. d4 {[%emt 0:00:28]} Nf3+ {[%emt 0:00:52]} 42. Rxf3 {[%emt 0:00:35]} a1=Q {[%emt 0:00:29]} 43. f6 {[%emt 0:00:08]} Qh6 {[%emt 0:01:59]} 44. Qc7 {[%emt 0:00:46]} Qa2 {[%emt 0:02:26]} 45. Rg3 {[%emt 0:00:23]} Qe6 {[%emt 0:00:54]} 46. Qb8 {[%emt 0:00:38]} Rxg2+ {[%emt 0:00:57]} 0-1